bitfinex-derivatives/quotes_BTCF0:USTF0_20240929
["timestamp","ask_amount","ask_price","bid_price","bid_amount"]
[1727568630298,0.075877,65879.0,65878.0,0.06026427]
[1727568630497,0.002,65879.0,65877.0,0.3608]
[1727568630900,0.01399601,65879.0,65877.0,0.3608]
[1727568631293,0.01599601,65879.0,65877.0,0.3608]
[1727568632001,0.01499601,65879.0,65877.0,0.3608]
[1727568633701,0.01399601,65879.0,65877.0,0.3608]
[1727568635790,0.002,65879.0,65877.0,0.3608]
[1727568635992,0.002,65879.0,65878.0,0.531278]
[1727568636299,0.01201055,65885.0,65884.0,0.075871]
[1727568636503,0.11,65887.0,65884.0,0.51199759]
[1727568636707,0.11,65887.0,65886.0,0.0004]
[1727568637401,0.01210558,65889.0,65887.0,0.075868]
[1727568637601,0.075862,65893.0,65888.0,0.0004]
[1727568637902,0.11,65894.0,65892.0,0.04557167]
[1727568638107,0.1135,65901.0,65893.0,0.0004]
[1727568638310,0.1135,65901.0,65900.0,0.04555573]
[1727568638311,0.12209716,65901.0,65900.0,0.04555573]
[1727568638701,0.19794916,65901.0,65900.0,0.0004]
[1727568638897,0.19794916,65901.0,65900.0,0.04555573]
[1727568639098,0.19794916,65901.0,65900.0,0.0004]
[1727568639303,0.19794916,65901.0,65900.0,0.04555573]
[1727568639505,0.19794916,65901.0,65900.0,0.0004]
[1727568640018,0.20494916,65901.0,65900.0,0.0004]
[1727568640399,0.21194916,65901.0,65900.0,0.0004]
[1727568641306,0.20494916,65901.0,65900.0,0.0004]
[1727568641507,0.20894916,65901.0,65900.0,0.0004]
[1727568641817,0.20494916,65901.0,65900.0,0.0004]
[1727568642207,0.20194916,65901.0,65900.0,0.0004]
[1727568642404,0.20694916,65901.0,65900.0,0.0004]
[1727568643013,0.20394916,65901.0,65900.0,0.0004]
[1727568643810,0.19994916,65901.0,65900.0,0.0004]
[1727568644515,0.19894916,65901.0,65900.0,0.0004]
[1727568644706,0.20294916,65901.0,65900.0,0.0004]
[1727568644911,0.13209716,65901.0,65900.0,0.0004]
[1727568645307,0.13009716,65901.0,65900.0,0.0004]
[1727568646118,0.12709716,65901.0,65900.0,0.0004]
[1727568646313,0.01509716,65901.0,65900.0,0.076253]
[1727568646519,0.01509716,65901.0,65900.0,0.531493]
[1727568646909,0.01509716,65901.0,65900.0,0.076253]
[1727568647109,0.01209716,65901.0,65900.0,0.076253]
[1727568647310,0.185851,65902.0,65900.0,0.076253]
[1727568647505,0.185851,65902.0,65901.0,0.0004]
[1727568647706,0.19772219,65902.0,65901.0,0.0004]
[1727568648817,0.19872219,65902.0,65901.0,0.0004]
[1727568649623,0.19972219,65902.0,65901.0,0.0004]
[1727568654723,0.19972219,65902.0,65901.0,0.3612]
[1727568655119,0.19972219,65902.0,65901.0,0.0004]
[1727568660615,0.25312219,65902.0,65901.0,0.0004]
[1727568670035,0.075852,65901.0,65900.0,0.0004]
[1727568676130,0.075866,65889.0,65884.0,0.06060764]
[1727568676328,0.185866,65889.0,65884.0,0.0004]
[1727568677425,0.186866,65889.0,65884.0,0.0004]
[1727568677831,0.187866,65889.0,65884.0,0.0004]
[1727568680229,0.548666,65889.0,65884.0,0.0004]
[1727568681246,0.624532,65889.0,65884.0,0.0004]
[1727568681434,0.07587,65885.0,65884.0,0.0004]
[1727568681634,0.11,65878.0,65877.0,0.0525]
[1727568683036,0.185878,65878.0,65877.0,0.0525]
[1727568684328,0.187878,65878.0,65877.0,0.0525]
[1727568685742,0.20005051,65878.0,65877.0,0.0525]
[1727568688044,0.075881,65876.0,65875.0,0.0004]
[1727568689347,0.076881,65876.0,65875.0,0.0004]
[1727568691044,0.077881,65876.0,65875.0,0.0004]
[1727568698260,0.002,65876.0,65875.0,0.0004]
[1727568698855,0.002,65876.0,65875.0,0.1093]
[1727568701572,0.11,65877.0,65875.0,0.1093]
[1727568701867,0.11,65877.0,65876.0,0.0004]
[1727568702260,0.18588,65877.0,65876.0,0.0004]
[1727568703256,0.18788,65877.0,65876.0,0.0004]
[1727568704054,0.18788,65877.0,65876.0,0.0014]
[1727568708868,0.18788,65877.0,65876.0,0.06160764]
[1727568709377,0.18788,65877.0,65876.0,0.0014]
[1727568710274,0.18788,65877.0,65876.0,0.00152]
[1727568710461,0.18788,65877.0,65876.0,0.06172764]
[1727568711374,0.18788,65877.0,65876.0,0.00152]
[1727568713176,0.18788,65877.0,65876.0,0.06172764]
[1727568716072,0.18788,65877.0,65876.0,0.00152]
[1727568716285,0.18788,65877.0,65876.0,0.06182152]
[1727568717576,0.29538,65877.0,65876.0,0.00152]
[1727568726380,0.29538,65877.0,65876.0,0.06182152]
[1727568727885,0.29538,65877.0,65876.0,0.06188153]
[1727568728082,0.29538,65877.0,65876.0,0.00152]
[1727568728583,0.18538,65877.0,65876.0,0.00152]
[1727568728778,0.29538,65877.0,65876.0,0.00152]
[1727568749886,0.29538,65877.0,65876.0,0.0014]
[1727568754501,0.29538,65877.0,65876.0,0.06178009]
[1727568754900,0.29538,65877.0,65876.0,0.0014]
[1727568762904,0.18538,65877.0,65876.0,0.0014]
[1727568763109,0.13268,65877.0,65876.0,0.06178009]
[1727568763506,0.13268,65877.0,65876.0,0.0014]
[1727568763906,0.13268,65877.0,65876.0,0.3622]
[1727568763907,0.002,65877.0,65876.0,0.3622]
[1727568764108,0.002,65877.0,65876.0,0.36232]
[1727568764506,0.002,65877.0,65876.0,0.46833394]
[1727568764706,0.07788,65877.0,65876.0,0.46833394]
[1727568766409,0.03990991,65877.0,65876.0,0.46833394]
[1727568767114,0.03990991,65877.0,65876.0,0.54376313]
[1727568768112,0.03990991,65877.0,65876.0,0.43774919]
[1727568770217,0.03990991,65877.0,65876.0,0.36232]
[1727568778026,0.075876,65881.0,65879.0,0.075877]
[1727568778232,0.075876,65881.0,65880.0,0.0004]
[1727568778521,0.01200115,65884.0,65880.0,0.128276]
[1727568778721,0.165,65885.0,65883.0,0.0004]
[1727568778922,0.24087,65885.0,65884.0,0.0004]
[1727568779527,0.13087,65885.0,65884.0,0.0004]
[1727568779827,0.1135,65892.0,65885.0,0.07587]
[1727568780125,0.075863,65891.0,65890.0,0.0004]
[1727568782125,0.08860192,65891.0,65890.0,0.0004]
[1727568783220,0.08960192,65891.0,65890.0,0.0024]
[1727568784625,0.01373892,65891.0,65890.0,0.0024]
[1727568786228,0.01373892,65891.0,65890.0,0.3632]
[1727568786422,0.01373892,65891.0,65890.0,1.546985]
[1727568794829,0.075861,65894.0,65890.0,1.546985]
[1727568795037,0.075861,65894.0,65893.0,0.076261]
[1727568795930,0.076861,65894.0,65893.0,0.076261]
[1727568796130,0.01301674,65894.0,65893.0,0.076261]
[1727568796340,0.001,65894.0,65893.0,0.076261]
[1727568797629,0.0535,65895.0,65893.0,0.078261]
[1727568797828,0.0535,65895.0,65894.0,0.0004]
[1727568798227,0.129359,65895.0,65894.0,0.0004]
[1727568798640,0.129359,65895.0,65894.0,0.04548358]
[1727568799043,0.129359,65895.0,65894.0,0.04648358]
[1727568800149,0.129359,65895.0,65894.0,0.0014]
[1727568800336,0.129359,65895.0,65894.0,0.04648719]
[1727568800538,0.129359,65895.0,65894.0,0.0014]
[1727568800838,0.14152725,65895.0,65894.0,0.0014]
[1727568801038,0.14152725,65895.0,65894.0,0.0024]
[1727568802450,0.14152725,65895.0,65894.0,0.07826]
[1727568805146,0.14152725,65895.0,65894.0,0.1383814]
[1727568805541,0.14152725,65895.0,65894.0,0.4991814]
[1727568807150,0.14152725,65895.0,65894.0,0.43906]
[1727568810251,0.14152725,65895.0,65894.0,0.51445903]
[1727568811060,0.14152725,65895.0,65894.0,0.61896712]
[1727568811354,0.0277101,65895.0,65894.0,0.61896712]
[1727568811561,0.079354,65900.0,65899.0,0.075854]
[1727568811752,0.075854,65900.0,65899.0,0.246102]
[1727568811953,0.075854,65900.0,65899.0,0.246502]
[1727568812153,0.075854,65900.0,65899.0,0.186254]
[1727568812754,0.08771201,65900.0,65899.0,0.186254]
[1727568813569,0.09171201,65900.0,65899.0,0.186254]
[1727568814667,0.09571201,65900.0,65899.0,0.186254]
[1727568815759,0.01985801,65900.0,65899.0,0.186254]
[1727568816466,0.01985801,65900.0,65899.0,0.26156401]
[1727568816973,0.01985801,65900.0,65899.0,0.36570448]
[1727568817462,0.01985801,65900.0,65899.0,0.36568181]
[1727568817661,0.01985801,65900.0,65899.0,0.26156401]
[1727568820453,0.01985801,65900.0,65899.0,0.36569657]
[1727568821362,0.01985801,65900.0,65899.0,0.26156401]
[1727568821569,0.01985801,65900.0,65899.0,0.36568026]
[1727568826576,0.01985801,65900.0,65899.0,0.3656894]
[1727568827468,0.01985801,65900.0,65899.0,0.2898354]
[1727568827669,0.09571101,65900.0,65899.0,0.1798354]
[1727568827869,0.09571101,65900.0,65899.0,0.07571001]
[1727568828180,0.01985801,65900.0,65899.0,0.07571001]
[1727568828764,0.01985801,65900.0,65899.0,0.17983088]
[1727568828970,0.01985801,65900.0,65899.0,0.07571001]
[1727568829466,0.01985801,65900.0,65899.0,0.17983245]
[1727568830968,0.01985801,65900.0,65899.0,0.07571001]
[1727568831369,0.01985801,65900.0,65899.0,0.17983527]
[1727568831879,0.01985801,65900.0,65899.0,0.07571001]
[1727568832784,0.01985801,65900.0,65899.0,0.17982864]
[1727568833078,0.01985801,65900.0,65899.0,0.07571001]
[1727568833278,0.01985801,65900.0,65899.0,0.17982828]
[1727568837381,0.01985801,65900.0,65899.0,0.0004]
[1727568840478,0.09571101,65900.0,65899.0,0.0004]
[1727568843788,0.09571101,65900.0,65899.0,0.1045279]
[1727568844388,0.09571101,65900.0,65899.0,0.17995864]
[1727568846284,0.09571101,65900.0,65899.0,0.1045279]
[1727568846890,0.09571101,65900.0,65899.0,0.17995776]
[1727568847279,0.09571101,65900.0,65899.0,0.1045279]
[1727568847681,0.09571101,65900.0,65899.0,0.17995824]
[1727568847892,0.09571101,65900.0,65899.0,0.17995777]
[1727568849195,0.09571101,65900.0,65899.0,0.17997972]
[1727568854592,0.09571101,65900.0,65899.0,0.1799751]
[1727568859305,0.09571101,65900.0,65899.0,0.17998053]
[1727568863307,0.09571101,65900.0,65899.0,0.18010053]
[1727568863504,0.09571101,65900.0,65899.0,0.10467066]
[1727568864006,0.09571101,65900.0,65899.0,0.1801055]
[1727568864403,0.09571101,65900.0,65899.0,0.18004716]
[1727568865304,0.09571101,65900.0,65899.0,0.10461232]
[1727568865500,0.09571101,65900.0,65899.0,0.18004832]
[1727568866420,0.09571101,65900.0,65899.0,0.10461232]
[1727568867435,0.09571101,65900.0,65899.0,0.18005187]
[1727568867826,0.09571101,65900.0,65899.0,0.10461232]
[1727568869223,0.09571101,65900.0,65899.0,0.10463114]
[1727568875522,0.09571101,65900.0,65899.0,0.18008087]
[1727568879130,0.09571101,65900.0,65899.0,0.07596973]
[1727568879437,0.09571101,65900.0,65899.0,0.17971416]
[1727568880040,0.20571101,65900.0,65899.0,0.17971416]
[1727568880331,0.20571101,65900.0,65899.0,0.00052]
[1727568889643,0.20571101,65900.0,65899.0,0.06087506]
[1727568889955,0.20571101,65900.0,65899.0,0.00052]
[1727568897647,0.20571101,65900.0,65899.0,0.0004]
[1727568901443,0.09571101,65900.0,65899.0,0.0004]
[1727568911965,0.09571101,65900.0,65899.0,0.00052]
[1727568914877,0.075855,65898.0,65897.0,0.06030218]
[1727568915153,0.075855,65898.0,65890.0,0.0004]
[1727568915154,0.075862,65892.0,65890.0,0.0004]
[1727568915357,0.075863,65891.0,65890.0,0.0004]
[1727568915556,0.240363,65891.0,65890.0,0.0004]
[1727568916954,0.601163,65891.0,65890.0,0.0004]
[1727568917460,0.602163,65891.0,65890.0,0.0034]
[1727568917761,0.603163,65891.0,65890.0,0.0044]
[1727568918165,0.242363,65891.0,65890.0,0.0044]
[1727568918362,0.603163,65891.0,65890.0,0.0044]
[1727568919367,0.242363,65891.0,65890.0,0.0044]
[1727568919566,0.6178891,65891.0,65890.0,0.0044]
[1727568928564,0.2570891,65891.0,65890.0,0.0044]
[1727568934178,0.0925891,65891.0,65890.0,0.0044]
[1727568937575,0.0167261,65891.0,65890.0,0.0044]
[1727568939168,0.0925891,65891.0,65890.0,0.0044]
[1727568941076,0.0167261,65891.0,65890.0,0.0044]
[1727568946593,0.0167261,65891.0,65890.0,0.080265]
[1727568970310,0.0688261,65891.0,65890.0,0.080265]
[1727568971100,0.0688261,65891.0,65890.0,0.0044]
[1727568990925,0.0688261,65891.0,65888.0,0.06045145]
[1727568991121,0.0688261,65891.0,65884.0,0.0004]
[1727568991122,0.4708,65889.0,65884.0,0.0004]
[1727568991424,0.18587,65885.0,65884.0,0.0004]
[1727568992923,0.54667,65885.0,65884.0,0.0004]
[1727568993328,0.54867,65885.0,65884.0,0.0004]
[1727568994416,0.18787,65885.0,65884.0,0.0004]
[1727568994617,0.54867,65885.0,65884.0,0.0004]
[1727568996133,0.18787,65885.0,65884.0,0.0004]
[1727568996427,0.54867,65885.0,65884.0,0.0004]
[1727569005823,0.18787,65885.0,65884.0,0.0004]
[1727569006127,0.54867,65885.0,65884.0,0.0004]
[1727569009125,0.43867,65885.0,65884.0,0.0004]
[1727569009326,0.4728,65885.0,65884.0,0.0004]
[1727569009543,0.3628,65885.0,65884.0,0.0004]
[1727569009932,0.3628,65885.0,65884.0,0.076271]
[1727569011326,0.002,65885.0,65884.0,0.076271]
[1727569020629,0.002,65885.0,65884.0,0.13672245]
[1727569021542,0.002,65885.0,65884.0,0.076271]
[1727569021738,0.002,65885.0,65884.0,0.13672245]
[1727569022045,0.002,65885.0,65884.0,0.076271]
[1727569022941,0.002,65885.0,65884.0,0.13672245]
[1727569024739,0.002,65885.0,65884.0,0.076271]
[1727569024946,0.002,65885.0,65884.0,0.13672245]
[1727569028743,0.002,65885.0,65884.0,0.06085145]
[1727569028938,0.002,65885.0,65884.0,0.0004]
[1727569042138,0.002,65885.0,65884.0,0.06085145]
[1727569043046,0.002,65885.0,65884.0,0.0004]
[1727569047259,0.002,65885.0,65884.0,0.06085145]
[1727569049164,0.002,65885.0,65884.0,0.0004]
[1727569049460,0.002,65885.0,65884.0,0.06085145]
[1727569057461,0.002,65885.0,65884.0,0.0004]
[1727569062872,0.002,65885.0,65884.0,0.0608678]
[1727569064662,0.002,65885.0,65884.0,0.0004]
[1727569069568,0.002,65885.0,65884.0,0.06086946]
[1727569069767,0.002,65885.0,65884.0,0.0004]
[1727569080278,0.002,65885.0,65884.0,0.076271]
[1727569082270,0.056,65899.0,65890.0,0.075865]
[1727569082470,0.056,65899.0,65895.0,0.075859]
[1727569082471,0.0569,65899.0,65895.0,0.075859]
[1727569082668,0.0569,65899.0,65895.0,0.24665859]
[1727569083087,0.37572812,65896.0,65895.0,0.24665859]
[1727569083474,0.37572812,65896.0,65895.0,0.186259]
[1727569083884,0.37572812,65896.0,65895.0,0.24665859]
[1727569084373,0.37572812,65896.0,65895.0,0.186259]
[1727569084580,0.37672812,65896.0,65895.0,0.186259]
[1727569085683,0.01592812,65896.0,65895.0,0.186259]
[1727569087385,0.01592812,65896.0,65895.0,0.12147798]
[1727569088472,0.01592812,65896.0,65895.0,0.076259]
[1727569089282,0.01592812,65896.0,65895.0,0.12147086]
[1727569090079,0.01592812,65896.0,65895.0,0.076259]
[1727569090484,0.01592812,65896.0,65895.0,0.12146837]
[1727569091204,0.01592812,65896.0,65895.0,0.076259]
[1727569093491,0.01592812,65896.0,65895.0,0.12145646]
[1727569096300,0.01592812,65896.0,65895.0,0.076259]
[1727569097597,0.01592812,65896.0,65895.0,0.12145337]
[1727569097998,0.01592812,65896.0,65895.0,0.12145264]
[1727569099391,0.01592812,65896.0,65895.0,0.076259]
[1727569104202,0.01592812,65896.0,65895.0,0.186259]
[1727569104397,0.0035,65901.0,65900.0,0.075853]
[1727569104704,0.4142,65907.0,65904.0,0.075848]
[1727569104899,0.3608,65907.0,65906.0,0.075846]
[1727569105100,0.3608,65907.0,65906.0,0.12144241]
[1727569106302,0.3728,65907.0,65906.0,0.12144241]
[1727569107502,0.0035,65909.0,65908.0,0.075844]
[1727569107714,0.0583,65917.0,65910.0,0.11]
[1727569108000,0.3608,65920.0,65917.0,0.075833]
[1727569108205,0.3608,65920.0,65919.0,0.0004]
[1727569108703,0.0035,65927.0,65919.0,1.16552]
[1727569108999,0.436606,65941.0,65926.0,0.0004]
[1727569109000,0.0035,65931.0,65926.0,0.0004]
[1727569109205,0.01468681,65932.0,65928.0,0.0004]
[1727569110201,0.3708,65929.0,65928.0,0.0004]
[1727569110398,0.3708,65929.0,65928.0,0.1104]
[1727569110596,0.3808,65929.0,65928.0,0.1114]
[1727569110904,0.02,65929.0,65928.0,0.1114]
[1727569111098,0.02,65929.0,65928.0,1.21974]
[1727569111298,0.0035,65936.0,65928.0,1.21974]
[1727569111505,0.0035,65941.0,65939.0,0.075808]
[1727569111703,0.12454608,65942.0,65939.0,0.075808]
[1727569111704,0.12454608,65942.0,65941.0,0.11]
[1727569111904,0.12454608,65942.0,65941.0,0.1104]
[1727569112908,0.13854608,65942.0,65941.0,0.1114]
[1727569113720,0.13854608,65942.0,65941.0,0.4722]
[1727569114407,0.019,65942.0,65941.0,0.4732]
[1727569114598,0.0035,65949.0,65941.0,0.92816]
[1727569114799,0.1058,65952.0,65948.0,0.1104]
[1727569115608,0.1058,65952.0,65948.0,0.186198]
[1727569115911,0.1058,65952.0,65948.0,0.076198]
[1727569116221,0.1098,65952.0,65948.0,0.077198]
[1727569117107,0.1098,65952.0,65948.0,0.078198]
[1727569117308,0.1244073,65952.0,65948.0,0.078198]
[1727569123110,0.1244073,65952.0,65949.0,0.11]
[1727569123515,0.1244073,65952.0,65950.0,0.075795]
[1727569123816,0.00030175,65955.0,65954.0,0.075791]
[1727569124016,0.00030175,65955.0,65954.0,0.076591]
[1727569124909,0.00030175,65955.0,65954.0,0.077591]
[1727569126417,0.00030175,65955.0,65954.0,0.079591]
[1727569126616,0.00030175,65955.0,65954.0,0.078591]
[1727569127413,0.00030175,65955.0,65954.0,0.079591]
[1727569127628,0.0035,65964.0,65954.0,0.81944]
[1727569127811,0.0035,65968.0,65963.0,0.1108]
[1727569128013,0.108,65974.0,65971.0,0.075771]
[1727569128214,0.108,65974.0,65973.0,0.0008]
[1727569129612,0.108,65974.0,65973.0,0.0018]
[1727569130019,0.183768,65974.0,65973.0,0.0018]
[1727569130721,0.183768,65974.0,65973.0,0.0028]
[1727569132019,0.108,65974.0,65973.0,0.0028]
[1727569134221,0.183768,65974.0,65973.0,0.0028]
[1727569136130,0.544568,65974.0,65973.0,0.0028]
[1727569137620,0.4688,65974.0,65973.0,0.0028]
[1727569140421,0.544568,65974.0,65973.0,0.0028]
[1727569141529,0.3608,65974.0,65973.0,0.0028]
[1727569141828,0.3608,65974.0,65973.0,0.248569]
[1727569144629,0.00030175,65975.0,65974.0,0.075768]
[1727569144833,0.00030175,65975.0,65974.0,0.076568]
[1727569146838,0.00030175,65975.0,65974.0,0.077568]
[1727569149827,0.00030175,65975.0,65974.0,0.0018]
[1727569150835,0.36110175,65975.0,65974.0,0.0018]
[1727569151427,0.43686875,65975.0,65974.0,0.0018]
[1727569161344,0.36110175,65975.0,65974.0,0.0018]
[1727569167844,0.43686875,65975.0,65974.0,0.0018]
[1727569174659,0.43686875,65975.0,65968.0,0.0035]
[1727569174863,0.606574,65969.0,65968.0,0.0035]
[1727569175060,0.606574,65969.0,65967.0,0.0008]
[1727569175061,0.075775,65968.0,65967.0,0.0008]
[1727569175254,0.178275,65968.0,65967.0,0.0008]
[1727569176456,0.178275,65968.0,65967.0,0.0088]
[1727569176766,0.59410201,65968.0,65951.0,0.04503428]
[1727569176956,0.59410201,65968.0,65954.0,0.0008]
[1727569176957,0.5308,65957.0,65954.0,0.0008]
[1727569177157,0.0501,65956.0,65954.0,0.0008]
[1727569177556,0.125889,65956.0,65954.0,0.0008]
[1727569177956,0.07579,65955.0,65954.0,0.0008]
[1727569178850,0.07579,65955.0,65954.0,0.0148]
[1727569179055,0.07579,65955.0,65954.0,0.0288]
[1727569179260,0.12459,65955.0,65954.0,0.0288]
[1727569179461,0.12459,65955.0,65954.0,0.0148]
[1727569179767,0.12459,65955.0,65954.0,0.0268]
[1727569179965,0.075796,65950.0,65948.0,0.0004]
[1727569180165,0.5308,65949.0,65948.0,0.0004]
[1727569180366,0.606597,65949.0,65948.0,0.0004]
[1727569180769,0.595597,65949.0,65948.0,0.0004]
[1727569181469,0.595597,65949.0,65948.0,0.0134]
[1727569181667,0.595597,65949.0,65948.0,0.0274]
[1727569182059,0.595597,65949.0,65948.0,0.0184]
[1727569182264,0.595597,65949.0,65948.0,0.0044]
[1727569182466,0.595597,65949.0,65948.0,0.0074]
[1727569182667,0.599597,65949.0,65948.0,0.0034]
[1727569183957,0.599597,65949.0,65948.0,0.0004]
[1727569184162,0.5328,65949.0,65948.0,0.0004]
[1727569184362,0.5288,65949.0,65948.0,0.0004]
[1727569184665,0.3648,65949.0,65948.0,0.0004]
[1727569187774,0.015,65949.0,65948.0,0.0004]
[1727569196292,0.090797,65949.0,65948.0,0.0004]
[1727569196876,0.015,65949.0,65948.0,0.0004]
[1727569201883,0.015,65949.0,65948.0,0.076198]
[1727569202876,0.01,65949.0,65948.0,0.076198]
[1727569204488,0.004,65949.0,65948.0,0.076198]
[1727569204789,0.006,65949.0,65948.0,0.076198]
[1727569207792,0.006,65949.0,65948.0,0.073898]
[1727569213392,0.006,65949.0,65948.0,0.11893228]
[1727569214687,0.006,65949.0,65948.0,0.04503428]
[1727569219994,0.006,65949.0,65948.0,0.04520867]
[1727569220195,0.006,65949.0,65948.0,0.04520904]
[1727569220504,0.006,65949.0,65948.0,0.075798]
[1727569222702,0.006,65949.0,65947.0,0.075798]
[1727569223203,0.006,65949.0,65948.0,0.075798]
[1727569223998,0.005,65949.0,65948.0,0.075798]
[1727569224800,0.007,65949.0,65948.0,0.075798]
[1727569226396,0.004,65949.0,65948.0,0.075798]
[1727569226607,0.002,65949.0,65948.0,0.075798]
[1727569227110,0.0475,65953.0,65946.0,0.06021194]
[1727569227304,0.0475,65953.0,65952.0,0.0008]
[1727569227604,0.3608,65954.0,65953.0,0.075792]
[1727569227904,0.3608,65954.0,65953.0,0.186592]
[1727569228213,0.3608,65954.0,65953.0,0.229292]
[1727569228513,0.3608,65954.0,65953.0,0.289506]
[1727569230204,0.3658,65954.0,65953.0,0.289506]
[1727569230707,0.3608,65954.0,65953.0,0.289506]
[1727569230907,0.3608,65954.0,65953.0,0.293506]
[1727569231112,0.3608,65954.0,65953.0,0.235292]
[1727569233511,0.01722485,65955.0,65954.0,0.075791]
[1727569233831,0.0035,65960.0,65954.0,0.061014]
[1727569233999,0.0035,65960.0,65959.0,0.075785]
[1727569234000,0.0169146,65960.0,65959.0,0.075785]
[1727569234199,0.1135,65964.0,65959.0,0.076585]
[1727569234507,0.1135,65964.0,65962.0,0.0008]
[1727569234508,0.11,65964.0,65962.0,0.0008]
[1727569235503,0.0414,65963.0,65962.0,0.0008]
[1727569235701,0.0414,65963.0,65962.0,0.076582]
[1727569236106,0.05827415,65963.0,65962.0,0.076582]
[1727569236809,0.06227415,65963.0,65962.0,0.076582]
[1727569237306,0.06727415,65963.0,65962.0,0.076582]
[1727569237513,0.012,65963.0,65962.0,0.077582]
[1727569238011,0.012,65963.0,65962.0,0.137796]
[1727569238311,0.012,65963.0,65962.0,0.531382]
[1727569238312,0.009,65963.0,65962.0,0.531382]
[1727569239013,0.006,65963.0,65962.0,0.531382]
[1727569239614,0.004,65963.0,65962.0,0.533382]
[1727569240012,0.0035,65968.0,65967.0,0.075776]
[1727569240210,0.075771,65972.0,65967.0,0.53163147]
[1727569240211,0.079271,65972.0,65967.0,0.53163147]
[1727569240418,0.075771,65972.0,65971.0,0.0008]
[1727569240806,0.075771,65972.0,65971.0,0.1108]
[1727569241005,0.075771,65972.0,65971.0,0.186571]
[1727569241504,0.0407,65974.0,65973.0,0.075769]
[1727569241713,0.0407,65974.0,65973.0,0.076569]
[1727569242502,0.05741052,65974.0,65973.0,0.076569]
[1727569243017,0.06541052,65974.0,65973.0,0.077569]
[1727569244213,0.07641052,65974.0,65973.0,0.078569]
[1727569244409,0.019,65974.0,65973.0,0.078569]
[1727569252229,0.019,65974.0,65973.0,0.439369]
[1727569262129,0.019,65974.0,65973.0,0.3636]
[1727569262333,0.0595,65974.0,65973.0,0.3636]
[1727569264034,0.4203,65974.0,65973.0,0.0028]
[1727569264238,0.5303,65974.0,65973.0,0.0028]
[1727569266337,0.4203,65974.0,65973.0,0.0028]
[1727569266725,0.0595,65974.0,65973.0,0.078569]
[1727569269337,0.0595,65974.0,65973.0,0.13874316]
[1727569269542,0.1695,65974.0,65973.0,0.06297416]
[1727569269838,0.1695,65974.0,65973.0,0.0028]
[1727569271535,0.245268,65974.0,65973.0,0.0028]
[1727569272532,0.245268,65974.0,65967.0,0.0008]
[1727569272533,0.075774,65969.0,65967.0,0.0008]
[1727569272749,0.5547,65968.0,65967.0,0.0008]
[1727569274035,0.5577,65968.0,65967.0,0.0008]
[1727569274245,0.633475,65968.0,65967.0,0.0008]
[1727569276444,0.272675,65968.0,65967.0,0.0008]
[1727569276637,0.633475,65968.0,65967.0,0.0008]
[1727569276843,0.075779,65965.0,65962.0,0.0008]
[1727569277036,0.11,65963.0,65962.0,0.0008]
[1727569278640,0.11,65963.0,65962.0,0.0028]
[1727569279651,0.11,65963.0,65962.0,0.0008]
[1727569279846,0.11,65963.0,65962.0,0.0028]
[1727569283155,0.01724294,65965.0,65962.0,0.0028]
[1727569283345,0.47156,65966.0,65964.0,0.0008]
[1727569283552,0.3608,65974.0,65965.0,0.0008]
[1727569283744,0.00380175,65975.0,65970.0,0.4716]
[1727569283944,0.00030175,65975.0,65974.0,0.1108]
[1727569284249,0.00030175,65975.0,65974.0,0.0008]
[1727569285251,0.01230175,65975.0,65974.0,0.0008]
[1727569285558,0.02130175,65975.0,65974.0,0.0018]
[1727569286057,0.03799358,65975.0,65974.0,0.0018]
[1727569289151,0.03799358,65975.0,65974.0,0.077568]
[1727569289551,0.02130175,65975.0,65974.0,0.187568]
[1727569289952,0.02130175,65975.0,65974.0,0.23270236]
[1727569293147,0.02130175,65975.0,65974.0,0.12270236]
[1727569293348,0.02130175,65975.0,65974.0,0.187568]
[1727569293559,0.02130175,65975.0,65974.0,0.23270236]
[1727569294260,0.02130175,65975.0,65974.0,0.187568]
[1727569295565,0.43684575,65995.0,65979.0,0.185762]
[1727569295858,0.43684575,65995.0,65994.0,0.1108]
[1727569295859,0.45395216,65995.0,65994.0,0.1108]
[1727569296163,0.37820816,65995.0,65994.0,0.0008]
[1727569296965,0.38620816,65995.0,65994.0,0.0008]
[1727569297162,0.38620816,65995.0,65994.0,0.186545]
[1727569297564,0.39220816,65995.0,65994.0,0.187545]
[1727569300664,0.39220816,65995.0,65994.0,0.0018]
[1727569302159,0.56220816,65995.0,65994.0,0.0018]
[1727569304463,0.63795216,65995.0,65994.0,0.0018]
[1727569308955,0.56220816,65995.0,65994.0,0.0018]
[1727569313175,0.39220816,65995.0,65994.0,0.0018]
[1727569315963,0.39220816,65995.0,65994.0,0.077545]
[1727569318776,0.39220816,65995.0,65994.0,0.0018]
[1727569319770,0.03140816,65995.0,65994.0,0.0018]
[1727569320774,0.10715216,65995.0,65994.0,0.0018]
[1727569322270,0.21715216,65995.0,65994.0,0.0018]
[1727569324167,0.57795216,65995.0,65994.0,0.0018]
[1727569331283,0.50220816,65995.0,65994.0,0.0018]
[1727569336385,0.14140816,65995.0,65994.0,0.0018]
[1727569336577,0.50220816,65995.0,65994.0,0.0018]
[1727569340406,0.57795216,65995.0,65994.0,0.0018]
[1727569341788,0.21715216,65995.0,65994.0,0.0018]
[1727569341995,0.57795216,65995.0,65994.0,0.0018]
[1727569344600,0.21715216,65995.0,65994.0,0.0018]
[1727569344797,0.57795216,65995.0,65994.0,0.0018]
[1727569345791,0.21715216,65995.0,65994.0,0.0018]
[1727569345993,0.57795216,65995.0,65994.0,0.0018]
[1727569347102,0.21715216,65995.0,65994.0,0.0018]
[1727569347398,0.57795216,65995.0,65994.0,0.0018]
[1727569347605,0.46795216,65995.0,65994.0,0.0018]
[1727569347796,0.57795216,65995.0,65994.0,0.0018]
[1727569350005,0.21715216,65995.0,65994.0,0.0018]
[1727569350197,0.57795216,65995.0,65994.0,0.0018]